bitfinex/quotes_ETHUSD_20250130
["timestamp","ask_amount","ask_price","bid_price","bid_amount"]
[1738203466641,0.015,3147.2,3146.0,0.8174]
[1738203466907,0.7557,3147.3,3145.5,0.8174]
[1738203466908,3.17882,3145.9,3145.5,0.8174]
[1738203467126,3.17874,3146.0,3145.5,0.8174]
[1738203468242,3.17875,3145.9,3145.5,0.8174]
[1738203468425,3.17872,3146.0,3145.5,1.217065]
[1738203468647,3.17875,3145.9,3145.5,1.217065]
[1738203469357,3.17897,3145.7,3145.5,0.8174]
[1738203469564,3.1791,3145.6,3145.2,0.8247]
[1738203470573,3.18644,3145.7,3145.2,0.8247]
[1738203473339,3.17911,3145.6,3145.2,0.8247]
[1738203474647,3.17878,3145.9,3145.2,4.00411]
[1738203474852,0.0075,3146.1,3145.2,4.00411]
[1738203474853,3.17861,3146.1,3145.4,0.55]
[1738203475183,3.17861,3146.1,3145.4,3.72918]
[1738203475184,3.17864,3146.0,3145.4,3.72918]
[1738203475350,3.17864,3146.0,3145.2,4.00411]
[1738203475351,3.17875,3145.9,3145.3,0.55]
[1738203475684,3.17875,3145.9,3145.5,0.55]
[1738203476462,3.17907,3145.6,3145.2,0.8247]
[1738203476663,6.3582,3145.6,3145.2,0.8247]
[1738203476964,3.17931,3145.4,3144.8,3.17983]
[1738203477308,3.98387,3146.0,3144.6,0.8001]
[1738203477309,3.17963,3145.1,3144.6,0.8001]
[1738203477450,3.17966,3145.0,3144.6,0.8001]
[1738203477647,3.17963,3145.1,3144.6,0.8001]
[1738203478691,3.17963,3145.1,3144.6,3.98015]
[1738203479056,0.0075,3145.2,3144.6,7.16012]
[1738203479255,0.0075,3145.2,3144.7,0.716012]
[1738203480056,3.17956,3145.1,3144.7,0.716012]
[1738203480282,3.17992,3144.8,3144.1,4.00711]
[1738203480481,3.17986,3144.8,3144.2,3.18043]
[1738203481095,3.17986,3144.8,3144.3,0.55]
[1738203481401,3.18007,3144.6,3144.1,0.8266]
[1738203481554,3.18749,3144.7,3144.2,0.400719]
[1738203481949,0.0075,3144.8,3144.2,3.581169]
[1738203482154,0.0075,3144.8,3144.3,3.18034]
[1738203482449,0.0075,3144.8,3144.4,0.6761509]
[1738203482690,0.0075,3144.7,3144.4,0.6761509]
[1738203483398,0.0075,3144.7,3144.2,6.761529]
[1738203483399,3.18749,3144.7,3144.2,0.400719]
[1738203484338,0.0075,3144.7,3144.2,3.581149]
[1738203484530,0.0075,3144.7,3144.3,3.18034]
[1738203484734,0.0075,3144.7,3144.2,3.581149]
[1738203485054,3.19477,3144.9,3144.3,3.6210449]
[1738203485755,3.17948,3145.2,3144.5,0.7656]
[1738203486405,0.0075,3145.1,3144.5,0.7656]
[1738203486606,3.17987,3144.8,3144.5,0.7656]
[1738203486811,3.17987,3144.8,3144.1,0.7656]
[1738203486812,0.015,3144.7,3144.1,0.7656]
[1738203487007,3.18031,3144.4,3143.8,0.7656]
[1738203487263,3.18031,3144.4,3143.9,0.55]
[1738203487756,3.18038,3144.3,3143.9,0.55]
[1738203488067,3.18058,3144.1,3143.5,0.7984]
[1738203488267,0.0075,3144.1,3143.6,3.18106]
[1738203488755,3.1881,3144.1,3143.6,0.55]
[1738203488939,3.1881,3144.1,3143.5,1.514486]
[1738203489151,3.18043,3144.3,3143.7,3.18095]
[1738203490259,0.0075,3144.2,3143.7,3.18095]
[1738203490576,3.18797,3144.2,3143.7,3.9686026]
[1738203490730,0.0075,3144.0,3143.5,3.97949]
[1738203490918,0.0075,3143.9,3143.5,0.7984]
[1738203491115,3.18047,3144.2,3143.5,0.7984]
[1738203491318,3.18047,3144.2,3143.6,3.18098]
[1738203491562,0.0075,3144.1,3143.6,3.18098]
[1738203491726,0.0075,3144.1,3143.6,3.89704]
[1738203492315,3.18075,3144.0,3143.5,0.7984]
[1738203492960,0.015,3143.9,3143.3,0.7635]
[1738203493263,0.0075,3143.7,3143.3,0.7635]
[1738203494058,3.18856,3143.7,3143.3,0.7635]
[1738203494228,3.18123,3143.5,3142.9,0.8247]
[1738203494434,0.0075,3143.5,3143.0,0.400654]
[1738203494635,0.0075,3143.5,3143.1,3.18156]
[1738203495333,0.0075,3143.5,3143.0,3.582314]
[1738203495537,0.0075,3143.5,3143.0,0.400654]
[1738203495734,0.0075,3143.5,3142.9,0.8247]
[1738203495735,0.0075,3143.3,3142.9,0.8247]
[1738203495937,3.1889,3143.3,3142.9,0.8247]
[1738203496867,0.0075,3143.2,3142.6,3.93315]
[1738203497021,0.0075,3143.2,3142.8,3.18186]
[1738203497863,3.18112,3143.6,3142.7,0.55]
[1738203498037,3.96488,3143.8,3143.2,3.95815]
[1738203498362,0.015,3143.7,3143.2,3.95815]
[1738203498997,0.015,3143.7,3143.2,0.7767]
[1738203499197,0.0075,3143.5,3143.0,3.97078]
[1738203499708,0.0075,3143.3,3143.0,0.7892]
[1738203499907,0.0075,3143.3,3142.9,3.18174]
[1738203500207,3.18106,3143.6,3142.9,3.18174]
[1738203500208,3.18101,3143.7,3143.1,3.18148]
[1738203500503,0.0075,3143.6,3143.1,3.18148]
[1738203503304,0.784,3143.8,3143.3,0.8196]
[1738203503509,3.95806,3144.0,3143.4,3.18121]
[1738203503705,0.0075,3143.9,3143.4,3.18121]
[1738203504117,0.0075,3143.9,3143.3,4.00094]
[1738203504407,3.18846,3143.7,3143.1,3.18154]
[1738203504608,0.0075,3143.7,3143.2,3.18145]
[1738203505489,0.0075,3143.7,3143.1,3.97704475]
[1738203505690,3.18852,3143.7,3143.1,3.18154]
[1738203506018,0.0075,3143.9,3143.3,3.1813]
[1738203506185,0.0075,3143.9,3143.3,6.3626]
[1738203506406,3.18828,3143.9,3143.3,3.1813]
[1738203506919,3.1806,3144.1,3143.5,3.98104]
[1738203507110,3.1806,3144.1,3143.5,4.697274]
[1738203507437,3.18082,3143.9,3143.5,1.516134]
[1738203507638,3.18106,3143.6,3143.0,3.93848]
[1738203507938,3.18106,3143.6,3142.2,0.62685626]
[1738203507939,0.0075,3143.2,3142.7,0.7569]
[1738203508146,0.0075,3143.0,3142.3,0.7939]
[1738203508293,3.18209,3142.6,3142.0,0.7939]
[1738203508493,3.18218,3142.5,3142.0,0.7939]
[1738203508741,0.0075,3142.5,3142.0,3.97651]
[1738203508918,0.0075,3142.5,3142.0,4.692439]
[1738203509126,0.0075,3142.5,3142.1,3.18256]
[1738203509529,0.0075,3142.5,3142.1,3.47945357]
[1738203510202,0.015,3142.3,3142.1,0.29689357]
[1738203510402,3.19748,3142.2,3142.1,0.29689357]
[1738203510609,4.932,3142.2,3142.1,0.29689357]
[1738203511325,3.19765,3142.1,3141.8,0.38018211]
[1738203511836,3.19765,3142.1,3141.5,3.18319]
[1738203513921,0.7943,3141.3,3140.7,3.18392]
[1738203514119,0.7943,3141.3,3140.6,3.18409]
[1738203514318,0.7868,3141.3,3140.8,3.18387]
[1738203514647,0.0075,3141.9,3141.2,3.18341]
[1738203514814,0.015,3141.9,3141.2,3.18341]
[1738203515355,0.0075,3141.9,3141.4,3.18326]
[1738203515537,0.0075,3141.9,3141.4,4.01076]
[1738203515739,0.0075,3141.9,3141.4,0.8275]
[1738203516032,0.0075,3142.1,3141.6,3.18309]
[1738203516349,0.015,3142.2,3141.6,3.18309]
[1738203516728,0.0075,3142.2,3141.8,3.18285]
[1738203516929,3.18209,3142.6,3141.9,3.18277]
[1738203517442,0.8324,3142.7,3142.1,3.18255]
[1738203517946,0.0075,3142.6,3142.1,3.18255]
[1738203520117,0.8108,3143.1,3142.2,0.55]
[1738203520334,3.18168,3143.0,3142.4,3.18227]
[1738203520540,0.0075,3142.9,3142.2,0.55]
[1738203520739,0.0075,3142.9,3142.2,3.73243]
[1738203521148,0.0075,3142.9,3142.3,3.18233]
[1738203521375,3.18178,3142.9,3142.3,3.18233]
[1738203521583,0.0075,3143.0,3142.3,3.18233]
[1738203521756,0.0075,3143.0,3142.3,3.9456762]
[1738203522155,3.18921,3143.0,3142.3,3.9456762]
[1738203522555,3.1818,3142.9,3142.3,3.9456762]
[1738203523291,0.0075,3142.9,3142.2,0.55]
[1738203523441,3.18194,3142.8,3142.2,0.55]
[1738203525209,3.18927,3142.9,3142.2,3.73247]
[1738203526510,3.1819,3142.8,3142.2,3.18244]
[1738203528367,3.19673,3143.0,3142.3,3.1823]
[1738203528565,3.18938,3142.8,3142.3,0.636488]
[1738203529706,3.182,3142.7,3142.3,0.636488]
[1738203529906,3.182,3142.7,3142.1,3.18258]
[1738203530057,3.9924,3143.1,3142.2,0.55]
[1738203530258,3.18143,3143.3,3142.7,3.18193]
[1738203530905,0.0075,3143.2,3142.7,3.18193]
[1738203532216,0.8161,3143.4,3142.8,3.18179]
[1738203532511,3.18122,3143.5,3142.9,3.1817]
[1738203532663,3.18122,3143.5,3142.7,3.897989]
[1738203532869,0.0075,3143.4,3142.9,3.18172]
[1738203533100,0.0075,3143.4,3143.0,0.7814]
[1738203533409,3.18876,3143.4,3143.0,0.7814]
[1738203533613,3.18186,3142.9,3142.4,0.7814]
[1738203533866,3.18194,3142.8,3142.1,3.96395]
[1738203534000,3.18186,3142.9,3142.3,0.55]
[1738203534175,3.18158,3143.1,3142.3,0.55]
[1738203534519,3.96151,3143.5,3142.7,3.73188]
[1738203534689,3.18133,3143.4,3142.8,3.18184]
[1738203534887,0.0075,3143.4,3142.8,3.18184]
[1738203535103,0.0075,3143.4,3142.7,3.73188]
[1738203535311,3.18149,3143.2,3142.7,3.73188]
[1738203536178,0.404401,3143.4,3142.7,3.73188]
[1738203536403,0.0075,3143.4,3142.9,3.18175]
[1738203536909,3.18884,3143.4,3142.7,3.73188]
[1738203537110,3.18145,3143.3,3142.7,0.55]
[1738203537318,3.18168,3143.0,3142.6,0.7814]
[1738203537728,3.18168,3143.0,3142.5,3.18214]
[1738203537946,3.18168,3143.0,3142.4,0.808]
[1738203538354,0.0075,3142.9,3142.4,0.808]
[1738203538646,3.18205,3142.7,3142.1,4.01157]
[1738203538825,0.0075,3142.9,3142.1,0.829]
[1738203539028,3.18167,3143.1,3142.6,3.18206]
[1738203539338,0.0075,3143.0,3142.6,3.18206]
[1738203539543,3.1892,3143.0,3142.4,3.18225]
[1738203540747,3.18138,3143.3,3142.6,4.01107]
[1738203540927,3.18138,3143.3,3142.6,4.01101]
[1738203540928,3.18153,3143.2,3142.6,4.01101]
[1738203542110,0.0075,3143.2,3142.6,4.01101]
[1738203542513,0.7566,3143.7,3143.2,3.1814]
[1738203542712,3.9893,3144.0,3143.4,3.18126]
[1738203542908,0.0075,3143.9,3143.4,3.18126]
[1738203543959,3.18847,3143.7,3143.2,0.7666]
[1738203544496,3.18847,3143.7,3143.1,3.18157]
[1738203544954,0.015,3143.9,3143.0,3.18163]
[1738203545154,0.0075,3143.7,3143.1,3.18154]
[1738203545744,3.98932,3144.0,3143.4,3.18126]
[1738203546192,0.0075,3143.9,3143.4,3.18126]
[1738203546396,0.0075,3143.9,3143.5,3.18116]
[1738203547051,0.0075,3143.9,3143.3,3.18134]
[1738203547398,0.0075,3143.9,3143.3,6.36264]
[1738203547749,0.0075,3143.9,3143.3,3.1813]
[1738203548098,0.0075,3143.9,3143.4,3.98296]
[1738203549101,3.98932,3144.0,3143.5,0.55]
[1738203549311,6.18007,3144.6,3143.5,0.55]
[1738203549312,3.82196006,3144.6,3143.9,3.18073]
[1738203549460,4.59656006,3144.6,3144.0,3.18064]
[1738203549783,0.0075,3144.5,3144.0,3.18064]
[1738203550700,3.17996,3144.7,3144.1,3.18054]
[1738203550914,0.7746,3144.9,3144.0,3.18066]
[1738203551207,3.95406,3145.2,3144.5,3.95924]
[1738203551519,3.17978,3144.9,3144.4,0.55]
[1738203551718,0.0075,3145.1,3144.4,0.55]
[1738203551895,3.17976,3144.9,3144.4,0.55]
[1738203552290,0.0075,3145.1,3144.4,0.55]
[1738203552507,3.95413,3145.2,3144.6,3.18005]
[1738203552820,3.17957,3145.1,3144.6,0.318005]
[1738203552972,3.95413,3145.2,3144.6,0.318005]
[1738203554234,3.95413,3145.2,3144.6,3.498045]
[1738203555030,3.17961,3145.1,3144.6,0.318005]
[1738203555244,3.17961,3145.1,3144.5,0.55]
[1738203555880,3.17961,3145.1,3144.5,3.18014]
[1738203559051,3.17936,3145.3,3144.7,0.7753]
[1738203559227,6.35799,3145.7,3145.0,3.17964]
[1738203559528,3.17899,3145.7,3145.0,3.17964]
[1738203559735,0.0075,3145.6,3144.8,3.72982]
[1738203559897,3.17948,3145.2,3144.7,0.7753]
[1738203562335,0.0075,3145.3,3144.7,3.95524]
[1738203562484,0.0075,3145.3,3144.8,3.893346]
[1738203562684,3.17906,3145.6,3145.0,3.1796]
[1738203562892,0.8098,3145.7,3145.1,3.17948]
[1738203563114,3.17906,3145.6,3145.1,3.17948]
[1738203563304,0.8098,3145.7,3145.1,3.17948]
[1738203563503,3.98877,3145.7,3145.1,3.17948]
[1738203565021,3.1791,3145.6,3144.9,3.72975]
[1738203565214,3.1791,3145.6,3145.0,3.17964]
[1738203565932,0.015,3145.5,3144.7,0.7753]
[1738203566091,0.8324,3145.4,3144.4,3.94865]
[1738203566298,3.17966,3145.0,3144.4,3.18025]
[1738203566563,0.8399,3144.9,3144.3,3.94866]
[1738203566709,4.01966,3144.9,3144.3,4.661565]
[1738203567502,3.17994,3144.8,3144.3,1.481305]
[1738203567702,4.01966,3144.9,3144.3,1.481305]
[1738203568336,4.01966,3144.9,3144.3,0.7684]
[1738203569252,3.17986,3144.8,3144.3,0.7684]
[1738203571306,4.01966,3144.9,3144.3,3.94869]
[1738203571506,4.01966,3144.9,3144.3,0.7684]
[1738203571934,3.17995,3144.7,3144.2,3.18037]
[1738203573042,0.8399,3144.9,3144.2,3.896669]
[1738203573350,0.8399,3144.9,3144.4,3.18023]
[1738203574098,0.63197155,3145.3,3144.3,0.55]
[1738203574099,0.792,3145.3,3144.3,0.55]
[1738203574305,0.792,3145.3,3144.8,3.17978]
[1738203574504,0.0075,3145.2,3144.8,3.17978]
[1738203574948,0.0075,3145.2,3144.6,3.18002]
[1738203575154,0.0075,3144.9,3144.4,3.95301]
[1738203575650,0.0075,3144.9,3144.4,7.1332]
[1738203575942,0.0075,3144.9,3144.4,3.95299]
[1738203577242,0.0075,3145.0,3144.2,3.93551]
[1738203577447,0.0075,3144.6,3144.2,3.18041]
[1738203577648,3.93097,3145.1,3144.2,0.636102]
[1738203577873,3.93097,3145.1,3144.7,3.17994]
[1738203577874,0.7514,3145.1,3144.7,3.17994]
[1738203578849,0.0075,3145.0,3144.5,3.18015]
[1738203579254,3.18715,3145.0,3144.5,3.18015]
[1738203579553,0.0075,3144.8,3144.1,3.1805]
[1738203580556,3.17996,3144.7,3144.1,3.1805]
[1738203580720,4.01491,3144.6,3144.2,0.38105127]
[1738203581865,4.01491,3144.6,3144.1,3.18055]
[1738203582029,0.8348,3144.6,3143.7,4.00313]
[1738203582219,0.8273,3144.1,3143.5,3.18116]
[1738203582419,4.00787,3144.1,3143.6,3.18106]
[1738203582620,0.0075,3144.4,3143.7,3.18096]
[1738203582921,0.0075,3144.4,3144.0,3.18063]
[1738203583726,0.0075,3144.4,3143.8,3.18078]
[1738203583948,0.0075,3144.4,3143.6,3.73099]
[1738203583949,3.18047,3144.2,3143.6,3.73099]
[1738203584122,3.18047,3144.2,3143.6,4.55012186]
[1738203584636,3.18047,3144.2,3143.7,3.56190232]
[1738203585234,3.18047,3144.2,3143.7,0.38097232]
[1738203585448,3.18047,3144.2,3143.7,3.56193232]
[1738203586076,3.18047,3144.2,3143.6,4.55012186]
[1738203586568,3.18047,3144.2,3143.6,7.73111186]
[1738203586875,3.18776,3144.4,3143.8,3.18081]
[1738203587241,3.18776,3144.4,3143.8,6.36162]
[1738203587571,3.18776,3144.4,3143.8,3.18081]
[1738203589980,0.0075,3144.4,3143.9,3.18072]
[1738203590134,0.7778,3144.5,3144.0,0.636153]
[1738203590342,0.7778,3144.5,3143.7,0.87408174]
[1738203590343,0.0075,3144.3,3143.7,3.56185232]
[1738203590541,3.18786,3144.3,3143.7,3.56185232]
[1738203591344,3.18786,3144.3,3143.7,3.18088]
[1738203591881,0.0075,3144.3,3143.5,4.36800232]
[1738203592057,0.7942,3144.0,3143.5,3.56210232]
[1738203592379,0.7942,3144.0,3143.5,4.23644555]
[1738203593179,3.97486,3144.0,3143.5,4.23644555]
[1738203593458,3.97486,3144.0,3143.6,0.38097232]
[1738203593850,0.7942,3144.0,3143.6,0.38097232]
[1738203595875,0.7942,3144.0,3143.5,3.18113]
[1738203596180,0.7942,3144.0,3143.6,3.18106]
[1738203596388,0.0075,3144.1,3143.6,3.18106]
[1738203597041,0.0075,3144.1,3143.7,0.3809248]
[1738203597576,0.015,3144.1,3143.7,0.3809248]
[1738203597757,3.18086,3143.8,3143.7,0.3809248]
[1738203597962,3.904691,3143.8,3143.7,0.3809248]
[1738203599848,0.0075,3143.7,3143.3,0.3809248]
[1738203600502,0.0075,3143.9,3143.3,0.3809248]
[1738203600663,0.7942,3144.3,3143.8,3.18085]
[1738203600865,0.397452,3144.2,3143.8,3.18085]
[1738203601088,0.0075,3144.2,3143.8,3.18085]
[1738203601493,0.0075,3144.2,3143.6,6.36204]
[1738203601699,0.0075,3144.2,3143.7,3.5618848]
[1738203601998,3.18803,3144.2,3143.7,0.3809248]
[1738203602205,3.18836,3143.8,3143.7,0.3809248]
[1738203602365,4.619471,3143.8,3143.7,0.3809248]
[1738203603508,0.0075,3143.7,3143.3,0.3809248]
[1738203604140,3.18853,3143.7,3143.3,0.3809248]
[1738203604311,0.0075,3143.7,3143.3,0.3809248]
[1738203604810,3.18848,3143.7,3143.3,0.3809248]
[1738203605831,0.0075,3143.7,3143.3,0.3809248]
[1738203606112,0.0075,3143.7,3143.3,0.73716328]
[1738203606283,0.0075,3143.7,3143.3,0.3809248]
[1738203607204,0.0075,3143.7,3143.3,3.5622248]
[1738203607507,0.0075,3143.7,3143.4,0.3809248]
[1738203607665,0.786,3144.1,3143.7,3.18094]
[1738203607881,0.786,3144.4,3143.9,3.1807]
[1738203608594,3.96603,3144.7,3144.0,0.8256]
[1738203608904,3.96603,3144.7,3144.2,3.18042]
[1738203609136,3.96578,3144.9,3144.4,3.18025]
[1738203609429,3.18708,3145.1,3144.5,3.18014]
[1738203609725,0.0075,3145.0,3144.5,3.18014]
[1738203610021,3.18717,3145.0,3144.4,3.18025]
[1738203610818,0.786,3145.2,3144.6,3.18003]
[1738203611130,0.786,3145.2,3144.7,3.17985]
[1738203611686,0.0075,3145.1,3144.7,3.17985]
[1738203613126,0.7742,3145.5,3144.9,3.17968]
[1738203613288,0.7742,3145.5,3145.0,3.17962]
[1738203613487,3.95306,3145.8,3145.1,3.17946]
[1738203613819,3.95306,3145.8,3144.9,3.497648]
[1738203613820,3.1791,3145.6,3144.9,3.497648]
[1738203614029,3.1791,3145.6,3145.0,3.17963]
[1738203614324,3.95306,3145.8,3145.1,3.17952]
[1738203614325,0.0075,3145.7,3145.1,3.17952]
[1738203614495,3.18646,3145.7,3145.2,3.17944]
[1738203614701,3.18646,3145.7,3145.1,3.17952]
[1738203615227,0.0075,3146.1,3145.5,3.17906]
[1738203615228,3.17855,3146.1,3145.5,3.17906]
[1738203615452,0.7537,3146.2,3145.3,0.7797]
[1738203615453,0.7537,3146.2,3145.8,3.17882]
[1738203615608,0.0075,3146.4,3145.8,3.17882]
[1738203615932,3.18596,3146.2,3145.6,3.17895]
[1738203616357,0.0075,3146.2,3145.7,3.17892]
[1738203617309,0.0075,3146.4,3145.8,3.17883]
[1738203618144,0.0075,3146.4,3145.9,3.17864]
[1738203619215,3.1858,3146.4,3145.8,1.463278]
[1738203619419,3.1858,3146.4,3145.7,3.17894]
[1738203620442,3.17846,3146.2,3145.6,3.99544]
[1738203620658,3.17843,3146.3,3145.4,3.17917]
[1738203620945,3.18603,3146.2,3145.4,3.17917]
[1738203621164,0.0075,3145.9,3145.3,4.0045]
[1738203621305,0.0075,3145.9,3145.1,3.17952]
[1738203621503,3.17917,3145.5,3144.9,3.17971]
[1738203621708,0.0075,3145.6,3144.7,3.17988]
[1738203621709,3.17924,3145.4,3144.7,3.17988]
[1738203622012,0.0075,3145.3,3144.8,3.17984]
[1738203623635,0.7943,3145.2,3144.7,0.55]
[1738203623847,3.17967,3145.0,3144.3,4.00037]
[1738203624005,0.7943,3145.2,3144.3,4.718459]
[1738203624006,0.0075,3145.1,3144.3,4.718459]
[1738203624443,0.0075,3145.1,3144.5,0.55]
[1738203624942,0.0075,3145.1,3144.5,3.7301]
[1738203626010,3.18707,3145.1,3144.5,3.7301]
[1738203626209,3.17966,3145.0,3144.4,0.55]
[1738203626710,0.0075,3144.7,3144.1,3.18054]
[1738203627742,0.7793,3144.9,3143.9,3.18075]
[1738203627743,0.7718,3144.9,3143.9,3.18076]
[1738203628039,0.7718,3144.9,3144.5,3.18015]
[1738203628544,3.95156,3144.9,3144.3,3.18034]
[1738203628850,3.18736,3144.8,3144.1,3.18053]
[1738203629011,3.18736,3144.8,3144.1,3.816655]
[1738203629349,0.0075,3144.8,3144.2,3.18041]
[1738203629523,0.0075,3144.8,3144.3,3.18035]
[1738203629728,0.7718,3144.9,3144.4,3.18025]
[1738203629947,0.7718,3144.9,3144.5,3.18011]
[1738203630456,3.95162,3144.9,3144.3,3.18035]
[1738203631048,0.7898,3144.5,3143.9,3.18073]
[1738203631746,3.96997,3144.5,3143.9,3.18073]
[1738203632445,0.05718566,3144.4,3144.2,3.18045]
[1738203633627,0.05718566,3144.4,3144.3,3.18035]
[1738203637242,0.05718566,3144.4,3144.3,3.73035]
[1738203637401,0.05718566,3144.4,3144.3,5.226939]
[1738203637920,0.05718566,3144.4,3144.3,8.226939]
[1738203638994,0.05718566,3144.4,3144.3,8.60675819]
[1738203640000,0.05718566,3144.4,3144.3,8.226939]
[1738203640619,0.05718566,3144.4,3144.3,8.60681653]
[1738203641522,5.66e-06,3144.4,3144.3,17.41681653]
[1738203641768,5.66e-06,3144.4,3144.3,22.75681653]
[1738203642886,5.66e-06,3144.4,3144.3,22.76431653]
[1738203643492,5.66e-06,3144.4,3144.3,22.86325067]
[1738203644004,0.8188,3146.1,3145.7,3.17891]
[1738203645012,5.3,3147.4,3146.1,0.55]
[1738203645214,0.8188,3147.8,3146.5,0.55]
[1738203645540,0.8188,3147.8,3147.0,3.17759]
[1738203645728,3.17694,3147.7,3147.0,3.17759]
[1738203646025,3.17705,3147.6,3147.0,3.17759]
[1738203647158,0.8188,3147.8,3147.2,3.17742]
[1738203647292,0.8188,3147.8,3147.1,0.55]
[1738203647492,0.0075,3147.7,3147.1,0.55]
[1738203647730,0.0075,3147.7,3147.0,0.55]
[1738203647935,0.0075,3147.7,3147.1,3.17752]
[1738203650184,3.99562,3147.8,3147.2,3.17742]
[1738203650390,0.8188,3147.8,3147.3,3.72725]
[1738203651785,0.8188,3147.8,3147.2,3.17742]
[1738203652355,0.8188,3147.8,3147.0,3.17762]
[1738203652356,0.8188,3147.8,3147.1,0.55]
[1738203652548,3.99569,3147.8,3147.1,0.55]
[1738203652887,3.99569,3147.8,3147.2,0.55]
[1738203654291,3.18444,3147.7,3147.1,3.17751]
[1738203654440,3.18444,3147.7,3147.1,3.495261]
[1738203657463,0.7674,3147.8,3147.5,3.17704]
[1738203657639,0.7674,3147.8,3147.1,4.297451]
[1738203657640,0.0075,3147.7,3147.1,4.297451]
[1738203657970,0.0075,3147.7,3147.2,0.4297451]
[1738203658678,0.0075,3147.7,3146.9,3.1777]
[1738203658837,0.8086,3147.3,3146.8,3.17782]
[1738203659033,0.8086,3147.3,3146.9,3.1777]
[1738203659437,0.8086,3147.3,3146.8,3.17782]
[1738203659683,0.8086,3147.3,3146.8,3.813403]
[1738203659892,0.8086,3147.3,3147.0,3.1776]
[1738203660651,0.8086,3147.3,3147.0,0.55]
[1738203660986,0.7849,3147.6,3147.2,3.17735]
[1738203661294,0.7849,3147.6,3147.1,3.17745]
[1738203661667,0.7849,3147.6,3147.2,3.17741]
[1738203661855,0.7849,3147.6,3147.3,3.17732]
[1738203662052,0.7559,3147.9,3147.3,3.17732]
[1738203662274,0.7559,3147.9,3147.5,3.17709]
[1738203663253,0.7559,3147.9,3147.6,3.17695]
[1738203663498,0.1640813,3148.0,3147.9,3.17672]
[1738203663698,0.1640813,3148.0,3147.9,3.867076]
[1738203663955,0.1640813,3148.0,3147.9,0.690356]
[1738203664217,0.1640813,3148.0,3147.7,3.17683]
[1738203664670,0.1640813,3148.0,3147.8,3.7268]
[1738203665603,0.1640813,3148.0,3147.9,3.72672]
[1738203667454,0.1640813,3148.0,3147.9,3.17672]
[1738203668396,0.1640813,3148.0,3147.9,3.72672]
[1738203668612,0.1640813,3148.0,3147.9,4.417075]
[1738203668996,0.1640813,3148.0,3147.9,3.867075]
[1738203669177,0.1640813,3148.0,3147.9,3.17672]
[1738203669601,0.1640813,3148.0,3147.9,3.72672]
[1738203674309,0.1640813,3148.0,3147.9,4.10561567]
[1738203675747,0.1640813,3148.0,3147.9,4.91281567]
[1738203677692,0.1640813,3148.0,3147.9,4.10561567]
[1738203677900,0.1640813,3148.0,3147.9,4.83385924]
[1738203678324,0.1640813,3148.0,3147.9,5.64105924]
[1738203678708,0.1640813,3148.0,3147.9,5.95945924]
[1738203679030,0.1640813,3148.0,3147.9,5.64105924]
[1738203680952,0.1640813,3148.0,3147.9,4.83385924]
[1738203681617,0.1640813,3148.0,3147.9,0.37889567]
[1738203682301,0.1640813,3148.0,3147.7,3.17687]
[1738203682502,0.1640813,3148.0,3147.5,3.17709]
[1738203682814,0.1640813,3148.0,3147.5,3.17704]
[1738203683014,0.1640813,3148.0,3147.7,3.17685]
[1738203683365,0.1640813,3148.0,3147.7,0.635389]
[1738203683649,0.1640813,3148.0,3147.3,0.768]
[1738203683650,0.8126,3147.9,3147.8,0.37998973]
[1738203683855,3.98932,3147.9,3147.8,0.37998973]
[1738203684151,0.8126,3147.9,3147.8,0.37998973]
[1738203684617,0.8126,3147.9,3147.7,3.1769]
[1738203684813,0.1640813,3148.0,3147.7,3.1769]
[1738203684814,0.1640813,3148.0,3147.7,3.49459]
[1738203685022,0.1640813,3148.0,3147.8,3.17679]
[1738203685423,0.1640813,3148.0,3147.7,0.31769]
[1738203685618,0.1640813,3148.0,3147.3,3.17729]
[1738203685952,3.3407413,3148.0,3147.9,0.3801183]
[1738203686132,3.3482413,3148.0,3147.9,0.3801183]
[1738203686332,4.1383413,3148.0,3147.9,0.3801183]
[1738203686702,4.1458413,3148.0,3147.9,0.3801183]
[1738203686934,4.87808243,3148.0,3147.9,0.3801183]
[1738203687179,0.7901,3147.5,3147.1,0.55]
[1738203688200,3.98879,3147.9,3147.3,3.17727]
[1738203688395,0.0075,3147.8,3147.3,3.17727]
[1738203688990,3.18433,3147.8,3147.2,0.3801183]
[1738203689299,3.17692,3147.7,3147.2,0.3801183]
[1738203689595,3.17692,3147.7,3147.2,3.96826413]
[1738203689802,0.812,3147.9,3147.4,0.55]
[1738203689946,0.812,3147.9,3147.4,3.72715]
[1738203690148,0.812,3147.9,3147.5,3.17712]
[1738203690457,0.812,3147.9,3147.4,3.72715]
[1738203690641,0.1640813,3148.0,3147.7,3.17687]
[1738203691596,0.1640813,3148.0,3147.8,0.3801183]
[1738203691763,0.1640813,3148.0,3147.9,3.72672]
[1738203693656,0.1640813,3148.0,3147.9,4.1068383]
[1738203695413,0.1640813,3148.0,3147.9,0.3801183]
[1738203696683,0.1640813,3148.0,3147.7,3.17682]
[1738203697011,0.1640813,3148.0,3147.8,3.1768]
[1738203698214,0.1640813,3148.0,3147.8,3.55728669]
[1738203699136,0.9216813,3148.0,3147.8,0.38048669]
[1738203699344,4.0983313,3148.0,3147.8,0.38048669]
[1738203699683,4.0983313,3148.0,3147.5,3.17709]
[1738203699921,0.0075,3147.7,3147.1,3.17745]
[1738203700137,0.0075,3147.7,3147.2,0.317745]
[1738203700138,3.18443,3147.7,3147.2,0.317745]
[1738203700441,0.0075,3147.7,3147.2,0.317745]